fUST/lending_fUST_20251010
["ID","MTS","AMOUNT","RATE_DAILY","PERIOD"]
[390479550,1760058652790,-391.7808599,0.00018224,2]
[390479552,1760058652800,-391.7808599,0.00018224,2]
[390479554,1760058652811,-391.7808599,0.00018224,2]
[390479556,1760058652820,-1519.0,0.00018356,2]
[390479558,1760058652829,-500.0,0.00018356,2]
[390479560,1760058652837,-500.0,0.00018356,2]
[390479562,1760058652848,-908.65,0.00018356,2]
[390479563,1760058652857,-539.86,0.00018356,2]
[390479565,1760058652865,-500.0,0.00018356,2]
[390479567,1760058652876,-554.35,0.00018356,2]
[390479569,1760058652885,-151.0,0.00018356,2]
[390479571,1760058652894,-1127.32,0.00018356,2]
[390479573,1760058652903,-836.06,0.00018356,2]
[390479575,1760058652912,-643.27,0.00018356,2]
[390479577,1760058652921,-500.0,0.00018356,2]
[390479578,1760058652930,-644.56,0.00018356,2]
[390479580,1760058652939,-500.0,0.00018356,2]
[390479581,1760058652948,-500.0,0.00018356,2]
[390479582,1760058652957,-727.24,0.00018356,2]
[390479583,1760058652966,-500.0,0.00018356,2]
[390479584,1760058652976,-2335.45,0.00018356,2]
[390479585,1760058652985,-617.81,0.00018356,2]
[390479586,1760058652994,-500.0,0.00018356,2]
[390479587,1760058653004,-4506.29,0.00018356,2]
[390479588,1760058653014,-3706.89,0.00018356,2]
[390479589,1760058653024,-500.0,0.00018356,2]
[390479590,1760058653033,-1269.01,0.00018356,2]
[390479591,1760058653043,-500.0,0.00018356,2]
[390479592,1760058653052,-151.0,0.00018356,2]
[390479593,1760058653062,-500.0,0.00018356,2]
[390479594,1760058653072,-500.0,0.00018356,2]
[390479595,1760058653082,-500.0,0.00018356,2]
[390479596,1760058653091,-684.43,0.00018356,2]
[390479597,1760058653101,-3739.76,0.00018356,2]
[390479598,1760058653110,-1231.2,0.00018356,2]
[390479599,1760058653120,-500.0,0.00018356,2]
[390479600,1760058653131,-627.64,0.00018356,2]
[390479601,1760058653141,-3272.57,0.00018356,2]
[390479602,1760058653150,-500.0,0.00018356,2]
[390479603,1760058653160,-500.0,0.00018356,2]
[390479604,1760058653170,-3185.5,0.00018356,2]
[390479605,1760058653181,-830.41,0.00018356,2]
[390479606,1760058653191,-1796.42,0.00018356,2]
[390479607,1760058653200,-500.0,0.00018356,2]
[390479608,1760058653210,-635.47,0.00018356,2]
[390479609,1760058653219,-500.0,0.00018356,2]
[390479610,1760058653228,-1137.25,0.00018356,2]
[390479611,1760058653379,-500.0,0.00018356,2]
[390479612,1760058653390,-1349.39,0.00018356,2]
[390479613,1760058653401,-736.88,0.00018356,2]
[390479614,1760058653411,-1086.11,0.00018356,2]
[390479615,1760058653420,-500.0,0.00018356,2]
[390479616,1760058653430,-510.3,0.00018356,2]
[390479617,1760058653439,-500.0,0.00018356,2]
[390479618,1760058653449,-527.19,0.00018356,2]
[390479619,1760058653458,-556.67,0.00018356,2]
[390479620,1760058653468,-500.0,0.00018356,2]
[390479621,1760058653478,-500.0,0.00018356,2]
[390479622,1760058653488,-500.0,0.00018356,2]
[390479623,1760058653497,-1323.81,0.00018356,2]
[390479624,1760058653509,-500.0,0.00018356,2]
[390479625,1760058653518,-500.0,0.00018356,2]
[390479626,1760058653528,-2160.82,0.00018356,2]
[390479627,1760058653538,-705.15,0.00018356,2]
[390479628,1760058653548,-500.0,0.00018356,2]
[390479629,1760058653557,-572.44,0.00018356,2]
[390479630,1760058653567,-1221.7,0.00018356,2]
[390479631,1760058653576,-500.0,0.00018356,2]
[390479632,1760058653586,-500.0,0.00018356,2]
[390479633,1760058653595,-1191.61,0.00018356,2]
[390479634,1760058653605,-500.0,0.00018356,2]
[390479635,1760058653614,-500.0,0.00018356,2]
[390479636,1760058653625,-2350.97,0.00018356,2]
[390479638,1760058653634,-500.0,0.00018356,2]
[390479640,1760058653643,-516.72694042,0.00018368,2]
[390479642,1760058653652,-10302.15815677,0.000184,2]
[390479644,1760058653661,-197.29710914,0.000184,2]
[390479646,1760058653669,-1042.12727065,0.000184,2]
[390479648,1760058653678,-577.37582327,0.000184,2]
[390479649,1760058653688,-256.84847944,0.000184,2]
[390479650,1760058653697,-151.0,0.000184,2]
[390479651,1760058653706,-2000.0,0.00018416,2]
[390479652,1760058653715,-2000.0,0.00018416,2]
[390479653,1760058653725,-502.06029178,0.00018416,2]
[390479654,1760058653734,-1000.0,0.00018416,2]
[390479655,1760058653744,-1000.0,0.00018416,2]
[390479656,1760058653753,-2000.0,0.00018416,2]
[390479657,1760058653763,-2000.0,0.00018416,2]
[390479658,1760058653776,-2000.0,0.00018416,2]
[390479659,1760058653786,-720.0,0.00018442,2]
[390479660,1760058653795,-10302.15815677,0.000185,2]
[390479661,1760058653805,-197.29710914,0.000185,2]
[390479662,1760058653814,-1042.12727065,0.000185,2]
[390479663,1760058653824,-577.37582327,0.000185,2]
[390479664,1760058653833,-256.84847944,0.000185,2]
[390479665,1760058653844,-151.0,0.000185,2]
[390479666,1760058653854,-539.196891,0.00018573,2]
[390479667,1760058653863,-254.28537,0.00018573,2]
[390479668,1760058653872,-1498.35633883,0.00018602,2]
[390479669,1760058653882,-1519.0,0.0001863,2]
[390479670,1760058653891,-223.57010379,0.0001863,2]
[390479671,1760058653901,-500.0,0.0001863,2]
[390479672,1760058653911,-908.65,0.0001863,2]
[390479673,1760058653918,-539.86,0.0001863,2]
[390479674,1760058653925,-500.0,0.0001863,2]
[390479675,1760058653932,-151.0,0.0001863,2]
[390479676,1760058653941,-192.154342,0.0001863,2]
[390479677,1760058653951,-192.154342,0.0001863,2]
[390479678,1760058653960,-192.154342,0.0001863,2]
[390479679,1760058653970,-192.154342,0.0001863,2]
[390479680,1760058653979,-210.450322,0.0001863,2]
[390479681,1760058653988,-210.450322,0.0001863,2]
[390479682,1760058653997,-210.450322,0.0001863,2]
[390479683,1760058654007,-210.450322,0.0001863,2]
[390479684,1760058654016,-554.35,0.0001863,2]
[390479685,1760058654026,-1127.32,0.0001863,2]
[390479686,1760058654036,-643.27,0.0001863,2]
[390479687,1760058654046,-836.06,0.0001863,2]
[390479688,1760058654055,-500.0,0.0001863,2]
[390479689,1760058654064,-644.56,0.0001863,2]
[390479690,1760058654073,-500.0,0.0001863,2]
[390479691,1760058654083,-500.0,0.0001863,2]
[390479692,1760058654092,-727.24,0.0001863,2]
[390479693,1760058654101,-500.0,0.0001863,2]
[390479694,1760058654111,-2335.45,0.0001863,2]
[390479695,1760058654120,-617.81,0.0001863,2]
[390479696,1760058654129,-500.0,0.0001863,2]
[390479697,1760058654138,-4506.29,0.0001863,2]
[390479698,1760058654147,-3706.89,0.0001863,2]
[390479699,1760058654156,-500.0,0.0001863,2]
[390479700,1760058654165,-1269.01,0.0001863,2]
[390479701,1760058654174,-500.0,0.0001863,2]
[390479702,1760058654184,-500.0,0.0001863,2]
[390479703,1760058654193,-500.0,0.0001863,2]
[390479704,1760058654203,-500.0,0.0001863,2]
[390479705,1760058654212,-684.43,0.0001863,2]
[390479706,1760058654221,-3739.76,0.0001863,2]
[390479707,1760058654230,-1231.2,0.0001863,2]
[390479708,1760058654240,-500.0,0.0001863,2]
[390479709,1760058654249,-627.64,0.0001863,2]
[390479710,1760058654259,-3272.57,0.0001863,2]
[390479711,1760058654269,-500.0,0.0001863,2]
[390479712,1760058654278,-500.0,0.0001863,2]
[390479713,1760058654287,-3185.5,0.0001863,2]
[390479714,1760058654297,-830.41,0.0001863,2]
[390479715,1760058654306,-1796.42,0.0001863,2]
[390479716,1760058654316,-387.02822451,0.0001863,2]
[390479717,1760058654325,-500.0,0.0001863,2]
[390479718,1760058654334,-1137.25,0.0001863,2]
[390479719,1760058654343,-500.0,0.0001863,2]
[390479720,1760058654352,-1349.39,0.0001863,2]
[390479721,1760058654361,-736.88,0.0001863,2]
[390479722,1760058654370,-1086.11,0.0001863,2]
[390479723,1760058654380,-500.0,0.0001863,2]
[390479724,1760058654389,-510.3,0.0001863,2]
[390479725,1760058654397,-500.0,0.0001863,2]
[390479726,1760058654407,-527.19,0.0001863,2]
[390479727,1760058654416,-556.67,0.0001863,2]
[390479728,1760058654425,-500.0,0.0001863,2]
[390479729,1760058654434,-500.0,0.0001863,2]
[390479730,1760058654443,-500.0,0.0001863,2]
[390479731,1760058654452,-1323.81,0.0001863,2]
[390479732,1760058654461,-500.0,0.0001863,2]
[390479733,1760058654470,-500.0,0.0001863,2]
[390479734,1760058654480,-2160.82,0.0001863,2]
[390479735,1760058654489,-705.15,0.0001863,2]
[390479736,1760058654498,-500.0,0.0001863,2]
[390479737,1760058654508,-572.44,0.0001863,2]
[390479738,1760058654517,-1221.7,0.0001863,2]
[390479739,1760058654527,-500.0,0.0001863,2]
[390479740,1760058654535,-500.0,0.0001863,2]
[390479741,1760058654545,-1191.61,0.0001863,2]
[390479742,1760058654554,-500.0,0.0001863,2]
[390479743,1760058654563,-2350.97,0.0001863,2]
[390479744,1760058654572,-500.0,0.0001863,2]
[390479745,1760058654581,-253.99817268,0.00018634,2]
[390479746,1760058654591,-415.83126983,0.00018656,2]
[390479747,1760058654600,-1500.0,0.00018656,2]
[390479748,1760058654609,-160.0,0.00018663,2]
[390479749,1760058654618,-600.0,0.00018674,2]
[390479750,1760058654627,-151.0,0.00018674,2]
[390479751,1760058654636,-10302.15815677,0.000187,2]
[390479752,1760058654646,-1042.12727065,0.000187,2]
[390479753,1760058654655,-577.37582327,0.000187,2]
[390479754,1760058654665,-256.84847944,0.000187,2]
[390479755,1760058654674,-1000.0,0.00018726,2]
[390479756,1760058654683,-1000.0,0.00018726,2]
[390479757,1760058654692,-1000.0,0.00018726,2]
[390479758,1760058654701,-500.0,0.00018726,2]
[390479759,1760058654710,-500.0,0.00018726,2]
[390479760,1760058654719,-599.25330159,0.00018736,2]
[390479761,1760058654728,-3963.1906398,0.00018799,2]
[390479762,1760058654737,-3449.861929,0.00018799,2]
[390479763,1760058654746,-1376.8165586,0.00018799,2]
[390479764,1760058654756,-176.96952832,0.00018803,2]
[390479765,1760058654767,-1176.45410288,0.00018804,2]
[390479766,1760058654778,-213.991,0.00018804,2]
[390479767,1760058654788,-881.08214939,0.00018838,2]
[390479768,1760058654797,-600.0,0.00018868,2]
[390479769,1760058654807,-1733.0,0.00018874,2]
[390479770,1760058654819,-10302.15815677,0.000189,2]
[390479771,1760058654833,-1519.0,0.00018904,2]
[390479772,1760058654847,-500.0,0.00018904,2]
[390479773,1760058654860,-908.65,0.00018904,2]
[390479774,1760058654872,-539.86,0.00018904,2]
[390479775,1760058654884,-500.0,0.00018904,2]
[390479776,1760058654896,-151.0,0.00018904,2]
[390479777,1760058654908,-192.154342,0.00018904,2]
[390479778,1760058654921,-192.154342,0.00018904,2]
[390479779,1760058654934,-192.154342,0.00018904,2]
[390479780,1760058654946,-192.154333,0.00018904,2]
[390479781,1760058654959,-210.450322,0.00018904,2]
[390479782,1760058654972,-210.450322,0.00018904,2]
[390479783,1760058654984,-210.450322,0.00018904,2]
[390479784,1760058654996,-210.450331,0.00018904,2]
[390479785,1760058655008,-554.35,0.00018904,2]
[390479786,1760058655020,-1127.32,0.00018904,2]
[390479788,1760058655034,-643.27,0.00018904,2]
[390479790,1760058655046,-836.06,0.00018904,2]
[390479792,1760058655058,-500.0,0.00018904,2]
[390479794,1760058655069,-644.56,0.00018904,2]
[390479796,1760058655079,-500.0,0.00018904,2]
[390479797,1760058655092,-500.0,0.00018904,2]
[390479798,1760058655103,-727.24,0.00018904,2]
[390479799,1760058655116,-500.0,0.00018904,2]
[390479800,1760058655129,-2335.45,0.00018904,2]
[390479801,1760058655141,-617.81,0.00018904,2]
[390479802,1760058655154,-500.0,0.00018904,2]
[390479803,1760058655167,-4506.29,0.00018904,2]
[390479804,1760058655181,-3706.89,0.00018904,2]
[390479805,1760058655192,-500.0,0.00018904,2]
[390479806,1760058655203,-1269.01,0.00018904,2]
[390479807,1760058655213,-500.0,0.00018904,2]
[390479808,1760058655223,-500.0,0.00018904,2]
[390479809,1760058655236,-500.0,0.00018904,2]
[390479810,1760058655250,-500.0,0.00018904,2]
[390479811,1760058655264,-684.43,0.00018904,2]
[390479812,1760058655274,-3739.76,0.00018904,2]
[390479813,1760058655285,-1231.2,0.00018904,2]
[390479814,1760058655297,-500.0,0.00018904,2]
[390479815,1760058655309,-627.64,0.00018904,2]
[390479816,1760058655320,-3272.57,0.00018904,2]
[390479817,1760058655330,-500.0,0.00018904,2]
[390479818,1760058655341,-500.0,0.00018904,2]
[390479819,1760058655352,-3185.5,0.00018904,2]
[390479820,1760058655363,-830.41,0.00018904,2]
[390479821,1760058655373,-1796.42,0.00018904,2]
[390479822,1760058655384,-500.0,0.00018904,2]
[390479823,1760058655395,-1137.25,0.00018904,2]
[390479824,1760058655406,-500.0,0.00018904,2]
[390479825,1760058655416,-1349.39,0.00018904,2]
[390479826,1760058655427,-736.88,0.00018904,2]
[390479827,1760058655438,-1086.11,0.00018904,2]
[390479828,1760058655449,-500.0,0.00018904,2]
[390479829,1760058655460,-510.3,0.00018904,2]
[390479830,1760058655471,-500.0,0.00018904,2]
[390479831,1760058655482,-527.19,0.00018904,2]
[390479832,1760058655492,-556.67,0.00018904,2]
[390479833,1760058655503,-500.0,0.00018904,2]
[390479834,1760058655516,-500.0,0.00018904,2]
[390479835,1760058655526,-1323.81,0.00018904,2]
[390479836,1760058655537,-500.0,0.00018904,2]
[390479837,1760058655548,-500.0,0.00018904,2]
[390479838,1760058655559,-2160.82,0.00018904,2]
[390479839,1760058655571,-705.15,0.00018904,2]
[390479840,1760058655581,-625.19998391,0.00018904,2]
[390479841,1760058655592,-572.44,0.00018904,2]
[390479842,1760058655603,-1221.7,0.00018904,2]
[390479843,1760058655614,-500.0,0.00018904,2]
[390479844,1760058655624,-500.0,0.00018904,2]
[390479845,1760058655635,-1191.61,0.00018904,2]
[390479846,1760058655646,-500.0,0.00018904,2]
[390479847,1760058655657,-2350.97,0.00018904,2]
[390479848,1760058655668,-500.0,0.00018904,2]
[390479849,1760058655679,-2500.0,0.00018964,2]
[390479850,1760058655691,-1752.19707844,0.00018964,2]
[390479851,1760058655702,-2500.0,0.00018964,2]
[390479852,1760058655713,-2500.0,0.00018964,2]
[390479853,1760058655725,-2500.0,0.00018964,2]
[390479854,1760058655736,-249.0,0.00018989,2]
[390479855,1760058655748,-249.0,0.00019022,2]
[390479856,1760058655760,-249.0,0.00019042,2]
[390479857,1760058655773,-539.196891,0.0001905,20]
[390479858,1760058655785,-254.28537,0.0001905,20]
[390479859,1760058655796,-254.28537,0.00019063,7]
[390479860,1760058655807,-539.196891,0.00019063,7]
[390479861,1760058655819,-1000.0,0.00019082,2]
[390479862,1760058655830,-1000.0,0.00019082,2]
[390479863,1760058655841,-1000.0,0.00019082,2]
[390479864,1760058655853,-1000.0,0.00019082,2]
[390479865,1760058655864,-1000.0,0.00019082,2]
[390479866,1760058655875,-1000.0,0.00019082,2]
[390479867,1760058655886,-1000.0,0.00019082,2]
[390479868,1760058655897,-1000.0,0.00019082,2]
[390479869,1760058655908,-1000.0,0.00019082,2]
[390479870,1760058655921,-1000.0,0.00019082,2]
[390479871,1760058655933,-301.9641,0.00019082,2]
[390479872,1760058655943,-2000.0,0.000191,2]
[390479873,1760058655954,-10302.15815677,0.000191,2]
[390479874,1760058655965,-673.47869969,0.00019101,2]
[390479875,1760058655979,-2693.91479875,0.00019101,2]
[390479876,1760058655990,-6055.24698889,0.00019101,2]
[390479877,1760058656003,-567.10478317,0.00019101,2]
[390479878,1760058656015,-254.28537,0.00019122,7]
[390479879,1760058656027,-539.196891,0.00019122,7]
[390479880,1760058656040,-539.196891,0.00019125,20]
[390479881,1760058656051,-254.28537,0.00019125,20]
[390479882,1760058656062,-1519.0,0.00019178,2]
[390479883,1760058656076,-500.0,0.00019178,2]
[390479884,1760058656087,-908.65,0.00019178,2]
[390479885,1760058656098,-539.86,0.00019178,2]
[390479886,1760058656109,-500.0,0.00019178,2]
[390479887,1760058656121,-554.35,0.00019178,2]
[390479888,1760058656133,-1127.32,0.00019178,2]
[390479889,1760058656143,-643.27,0.00019178,2]
[390479890,1760058656155,-836.06,0.00019178,2]
[390479891,1760058656166,-500.0,0.00019178,2]
[390479892,1760058656177,-644.56,0.00019178,2]
[390479893,1760058656188,-500.0,0.00019178,2]
[390479894,1760058656198,-500.0,0.00019178,2]
[390479895,1760058656209,-727.24,0.00019178,2]
[390479896,1760058656220,-500.0,0.00019178,2]
[390479897,1760058656231,-2335.45,0.00019178,2]
[390479898,1760058656242,-151.0,0.00019178,2]
[390479899,1760058656253,-617.81,0.00019178,2]
[390479900,1760058656264,-500.0,0.00019178,2]
[390479901,1760058656275,-4506.29,0.00019178,2]
[390479902,1760058656287,-3706.89,0.00019178,2]
[390479903,1760058656298,-500.0,0.00019178,2]
[390479904,1760058656310,-1269.01,0.00019178,2]
[390479905,1760058656320,-500.0,0.00019178,2]
[390479906,1760058656331,-500.0,0.00019178,2]
[390479907,1760058656343,-500.0,0.00019178,2]
[390479908,1760058656356,-500.0,0.00019178,2]
[390479909,1760058656367,-684.43,0.00019178,2]
[390479910,1760058656378,-3739.76,0.00019178,2]
[390479911,1760058656389,-1231.2,0.00019178,2]
[390479912,1760058656400,-500.0,0.00019178,2]
[390479913,1760058656411,-627.64,0.00019178,2]
[390479914,1760058656423,-3272.57,0.00019178,2]
[390479915,1760058656434,-500.0,0.00019178,2]
[390479916,1760058656446,-500.0,0.00019178,2]
[390479917,1760058656456,-3185.5,0.00019178,2]
[390479918,1760058656467,-830.41,0.00019178,2]
[390479919,1760058656478,-1796.42,0.00019178,2]
[390479920,1760058656490,-500.0,0.00019178,2]
[390479921,1760058656501,-1137.25,0.00019178,2]
[390479922,1760058656513,-500.0,0.00019178,2]
[390479923,1760058656710,-1349.39,0.00019178,2]
[390479924,1760058656727,-736.88,0.00019178,2]
[390479925,1760058656736,-1086.11,0.00019178,2]
[390479926,1760058656745,-500.0,0.00019178,2]
[390479927,1760058656755,-510.3,0.00019178,2]
[390479928,1760058656766,-500.0,0.00019178,2]
[390479929,1760058656778,-527.19,0.00019178,2]
[390479930,1760058656787,-556.67,0.00019178,2]
[390479931,1760058656796,-500.0,0.00019178,2]
[390479932,1760058656806,-500.0,0.00019178,2]
[390479933,1760058656818,-1323.81,0.00019178,2]
[390479934,1760058656827,-500.0,0.00019178,2]
[390479935,1760058656837,-500.0,0.00019178,2]
[390479936,1760058656847,-2160.82,0.00019178,2]
[390479937,1760058656856,-705.15,0.00019178,2]
[390479938,1760058656866,-572.44,0.00019178,2]
[390479939,1760058656875,-1221.7,0.00019178,2]
[390479940,1760058656884,-500.0,0.00019178,2]
[390479941,1760058656894,-500.0,0.00019178,2]
[390479942,1760058656903,-1191.61,0.00019178,2]
[390479943,1760058656912,-500.0,0.00019178,2]
[390479944,1760058656921,-2350.97,0.00019178,2]
[390479945,1760058656930,-500.0,0.00019178,2]
[390479946,1760058656940,-150.0,0.00019178,2]
[390479947,1760058656949,-254.28537,0.00019182,7]
[390479948,1760058656958,-539.196891,0.00019182,7]
[390479949,1760058656967,-391.7808599,0.00019183,2]
[390479950,1760058656977,-391.7808599,0.00019183,2]
[390479951,1760058656986,-391.7808599,0.00019183,2]
[390479952,1760058656995,-391.7808599,0.00019183,2]
[390479953,1760058657005,-391.7808599,0.00019183,2]
[390479954,1760058657015,-391.7808599,0.00019183,2]
[390479955,1760058657024,-391.7808599,0.00019183,2]
[390479956,1760058657033,-391.7808599,0.00019183,2]
[390479957,1760058657042,-783.5617198,0.00019183,2]
[390479958,1760058657051,-5000.0,0.00019188,2]
[390479959,1760058657061,-249.0,0.00019198,2]
[390479960,1760058657070,-3000.0,0.000192,2]
[390479961,1760058657079,-539.196891,0.000192,20]
[390479962,1760058657089,-254.28537,0.000192,20]
[390479963,1760058657098,-539.196891,0.00019202,9]
[390479964,1760058657107,-539.196891,0.00019202,9]
[390479965,1760058657116,-539.196891,0.00019202,9]
[390479966,1760058657126,-254.28537,0.00019202,9]
[390479967,1760058657135,-254.28537,0.00019202,9]
[390479968,1760058657144,-254.28537,0.00019202,9]
[390479969,1760058657153,-254.28537,0.00019202,9]
[390479970,1760058657163,-254.28537,0.00019202,9]
[390479971,1760058657171,-539.196891,0.00019202,9]
[390479972,1760058657180,-539.196891,0.00019202,9]
[390479973,1760058657190,-500.0,0.00019204,2]
[390479974,1760058657199,-3000.0,0.0001921,2]
[390479975,1760058657208,-260.0,0.0001921,2]
[390479976,1760058657218,-1733.0,0.00019211,2]
[390479977,1760058657227,-3000.0,0.0001922,2]
[390479978,1760058657237,-3000.0,0.0001923,2]
[390479979,1760058657247,-1733.0,0.00019236,2]
[390479980,1760058657256,-3000.0,0.0001924,2]
[390479981,1760058657266,-254.28537,0.00019241,7]
[390479982,1760058657275,-539.196891,0.00019241,7]
[390479983,1760058657284,-3000.0,0.0001925,2]
[390479984,1760058657294,-3000.0,0.0001926,2]
[390479985,1760058657303,-3000.0,0.0001927,2]
[390479986,1760058657312,-391.7808599,0.00019271,2]
[390479987,1760058657322,-1500.0,0.00019274,2]
[390479988,1760058657331,-1500.0,0.00019274,2]
[390479989,1760058657340,-1500.0,0.00019274,2]
[390479990,1760058657349,-3000.0,0.0001928,2]
[390479991,1760058657358,-249.0,0.00019282,2]
[390479992,1760058657368,-249.0,0.00019285,2]
[390479993,1760058657377,-174.0,0.00019288,3]
[390479994,1760058657386,-3000.0,0.0001929,2]
[390479995,1760058657395,-10302.15815677,0.000193,2]
[390479996,1760058657405,-3000.0,0.000193,2]
[390479997,1760058657415,-254.28537,0.000193,7]
[390479998,1760058657425,-539.196891,0.000193,7]
[390479999,1760058657433,-3000.0,0.0001931,2]
[390480000,1760058657443,-300.0,0.00019315,2]
[390480001,1760058657452,-3000.0,0.0001932,2]
[390480002,1760058657460,-3000.0,0.0001933,2]
[390480003,1760058657469,-655.43329861,0.00019336,2]
[390480004,1760058657478,-3000.0,0.0001934,2]
[390480005,1760058657487,-3000.0,0.0001935,2]
[390480006,1760058657496,-3000.0,0.0001936,2]
[390480007,1760058657505,-3000.0,0.0001937,2]
[390480008,1760058657515,-3000.0,0.0001938,2]
[390480009,1760058657524,-3000.0,0.0001939,2]
[390480010,1760058657533,-3000.0,0.000194,2]
[390480011,1760058657542,-2000.0,0.000194,2]
[390480012,1760058657551,-3000.0,0.0001941,2]
[390480013,1760058657560,-3000.0,0.0001942,2]
[390480014,1760058657569,-3000.0,0.0001943,2]
[390480015,1760058657577,-3000.0,0.0001944,2]
[390480016,1760058657587,-3000.0,0.0001945,2]
[390480017,1760058657596,-1519.0,0.00019452,2]
[390480018,1760058657605,-151.0,0.00019452,2]
[390480019,1760058657614,-12500.0,0.00019452,7]
[390480020,1760058657623,-500.0,0.00019452,2]
[390480021,1760058657632,-908.65,0.00019452,2]
[390480022,1760058657641,-539.86,0.00019452,2]
[390480023,1760058657650,-500.0,0.00019452,2]
[390480024,1760058657659,-554.35,0.00019452,2]
[390480025,1760058657668,-1127.32,0.00019452,2]
[390480026,1760058657677,-643.27,0.00019452,2]
[390480027,1760058657686,-836.06,0.00019452,2]
[390480028,1760058657695,-500.0,0.00019452,2]
[390480029,1760058657705,-644.56,0.00019452,2]
[390480030,1760058657714,-500.0,0.00019452,2]
[390480031,1760058657723,-500.0,0.00019452,2]
[390480032,1760058657732,-727.24,0.00019452,2]
[390480033,1760058657741,-500.0,0.00019452,2]
[390480034,1760058657751,-2335.45,0.00019452,2]
[390480035,1760058657760,-617.81,0.00019452,2]
[390480036,1760058657771,-500.0,0.00019452,2]
[390480037,1760058657781,-3706.89,0.00019452,2]
[390480038,1760058657790,-4506.29,0.00019452,2]
[390480039,1760058657800,-500.0,0.00019452,2]
[390480040,1760058657810,-1269.01,0.00019452,2]
[390480041,1760058657820,-500.0,0.00019452,2]
[390480042,1760058657829,-500.0,0.00019452,2]
[390480043,1760058657838,-500.0,0.00019452,2]
[390480044,1760058657849,-500.0,0.00019452,2]
[390480045,1760058657859,-684.43,0.00019452,2]
[390480046,1760058657868,-3739.76,0.00019452,2]
[390480047,1760058657877,-1231.2,0.00019452,2]
[390480048,1760058657886,-500.0,0.00019452,2]
[390480049,1760058657895,-627.64,0.00019452,2]
[390480050,1760058657904,-3272.57,0.00019452,2]
[390480051,1760058657913,-500.0,0.00019452,2]
[390480052,1760058657924,-500.0,0.00019452,2]
[390480053,1760058657934,-3185.5,0.00019452,2]
[390480054,1760058657944,-830.41,0.00019452,2]
[390480055,1760058657953,-1796.42,0.00019452,2]
[390480056,1760058657962,-500.0,0.00019452,2]
[390480057,1760058657971,-1137.25,0.00019452,2]
[390480058,1760058657981,-500.0,0.00019452,2]
[390480059,1760058657990,-1349.39,0.00019452,2]
[390480060,1760058657999,-736.88,0.00019452,2]
[390480061,1760058658008,-1086.11,0.00019452,2]
[390480062,1760058658017,-500.0,0.00019452,2]
[390480063,1760058658026,-510.3,0.00019452,2]
[390480064,1760058658035,-500.0,0.00019452,2]
[390480065,1760058658045,-527.19,0.00019452,2]
[390480066,1760058658054,-556.67,0.00019452,2]
[390480067,1760058658063,-500.0,0.00019452,2]
[390480068,1760058658072,-500.0,0.00019452,2]
[390480069,1760058658081,-1323.81,0.00019452,2]
[390480070,1760058658091,-500.0,0.00019452,2]
[390480071,1760058658100,-500.0,0.00019452,2]
[390480072,1760058658109,-2160.82,0.00019452,2]
[390480073,1760058658118,-705.15,0.00019452,2]
[390480074,1760058658128,-572.44,0.00019452,2]